fUSD/lending_fUSD_20260612
["ID","MTS","AMOUNT","RATE_DAILY","PERIOD"]
[424900730,1781257847000,-346.41,0.00015065,2]
[424900727,1781257847000,-488.65,0.00015032,2]
[424900729,1781257847000,-11014.28459024,0.0001505,2]
[424900733,1781257847000,-5102.0,0.00015068,2]
[424900726,1781257847000,-346.41,0.00015028,2]
[424900732,1781257847000,-450.58,0.00015068,2]
[424900728,1781257847000,-346.41,0.00015047,2]
[424900731,1781257847000,-150.0,0.00015068,2]
[424900740,1781257847000,-346.41,0.00015101,2]
[424900735,1781257847000,-1259.8,0.00015081,2]
[424900738,1781257847000,-346.41,0.00015083,2]
[424900737,1781257847000,-488.65,0.00015083,2]
[424900736,1781257847000,-839.87,0.00015082,2]
[424900743,1781257847000,-488.65,0.00015131,2]
[424900745,1781257847000,-346.41,0.00015152,2]
[424900742,1781257847000,-350.0,0.00015124,2]
[424900739,1781257847000,-1500.0,0.00015089,2]
[424900744,1781257847000,-346.41,0.00015135,2]
[424900725,1781257847000,-2771.61,0.00015021,2]
[424900741,1781257847000,-346.41,0.00015118,2]
[424900722,1781257847000,-839.87,0.00015004,2]
[424900711,1781257847000,-868.71,0.00015,2]
[424900723,1781257847000,-346.41,0.00015009,2]
[424900746,1781257847000,-839.87,0.00015154,2]
[424900703,1781257847000,-207.04,0.00015,2]
[424900704,1781257847000,-3000.0,0.00015,2]
[424900702,1781257847000,-310.55,0.00015,2]
[424900706,1781257847000,-2859.85,0.00015,2]
[424900705,1781257847000,-3000.0,0.00015,2]
[424900707,1781257847000,-3000.0,0.00015,2]
[424900710,1781257847000,-491.0,0.00015,2]
[424900709,1781257847000,-2214.96,0.00015,2]
[424900717,1781257847000,-10181.9838005,0.00015,2]
[424900708,1781257847000,-691.61,0.00015,2]
[424900713,1781257847000,-217.18,0.00015,2]
[424900714,1781257847000,-151.0,0.00015,2]
[424900715,1781257847000,-4923.09472156,0.00015,2]
[424900716,1781257847000,-150.0,0.00015,2]
[424900724,1781257847000,-350.0,0.00015018,2]
[424900721,1781257847000,-401.99595,0.00015,2]
[424900718,1781257847000,-1205.3,0.00015,2]
[424900720,1781257847000,-401.99595,0.00015,2]
[424900719,1781257847000,-401.99595,0.00015,2]
[424900712,1781257847000,-361.96,0.00015,2]
[424900747,1781257847000,-346.41,0.00015168,2]
[424900780,1781257847000,-488.65,0.00015351,2]
[424900751,1781257847000,-2771.61,0.00015196,2]
[424900770,1781257847000,-346.41,0.00015307,2]
[424900774,1781257847000,-2887.39,0.00015349,2]
[424900772,1781257847000,-346.41,0.00015322,2]
[424900778,1781257847000,-346.41,0.0001535,2]
[424900779,1781257847000,-2771.61,0.0001535,2]
[424900782,1781257847000,-346.41,0.00015378,2]
[424900789,1781257847000,-352.56111881,0.00015602,2]
[424900781,1781257847000,-346.41,0.00015364,2]
[424900784,1781257847000,-346.41,0.00015405,2]
[424900771,1781257847000,-488.65,0.0001531,2]
[424900788,1781257847000,-4923.09472156,0.000156,2]
[424900783,1781257847000,-346.41,0.00015392,2]
[424900786,1781257847000,-4923.09472156,0.000155,2]
[424900795,1781257847000,-4923.09472156,0.000159,2]
[424900785,1781257847000,-194.53803,0.00015437,2]
[424900790,1781257847000,-1555.5,0.00015637,2]
[424900792,1781257847000,-4923.09472156,0.000158,2]
[424900794,1781257847000,-1017.04,0.00015897,2]
[424900793,1781257847000,-1000.0,0.000158,2]
[424900748,1781257847000,-488.65,0.00015178,2]
[424900787,1781257847000,-161.081112,0.00015515,2]
[424900777,1781257847000,-839.87,0.0001535,2]
[424900791,1781257847000,-2843.77201288,0.000158,5]
[424900773,1781257847000,-346.41,0.00015336,2]
[424900776,1781257847000,-1259.8,0.00015349,2]
[424900754,1781257847000,-346.41,0.00015201,2]
[424900756,1781257847000,-1688.9,0.00015202,2]
[424900755,1781257847000,-2375.71,0.00015202,2]
[424900749,1781257847000,-346.41,0.00015185,2]
[424900752,1781257847000,-4923.09472156,0.000152,2]
[424900753,1781257847000,-1201.0,0.000152,2]
[424900760,1781257847000,-488.65,0.00015224,2]
[424900757,1781257847000,-2327.9,0.00015202,2]
[424900758,1781257847000,-346.41,0.00015216,2]
[424900750,1781257847000,-803.39,0.00015192,2]
[424900764,1781257847000,-346.41,0.00015263,2]
[424900767,1781257847000,-839.87,0.00015288,2]
[424900775,1781257847000,-419.93,0.00015349,2]
[424900769,1781257847000,-4923.09472156,0.000153,2]
[424900761,1781257847000,-346.41,0.00015232,2]
[424900765,1781257847000,-488.65,0.00015267,2]
[424900759,1781257847000,-839.87,0.00015222,2]
[424900762,1781257847000,-346.41,0.00015248,2]
[424900763,1781257847000,-166.81,0.00015254,2]
[424900766,1781257847000,-346.41,0.00015278,2]
[424900768,1781257847000,-346.41,0.00015293,2]
[424900814,1781257848000,-4923.09472156,0.000162,2]
[424900826,1781257848000,-350.0,0.00016446,2]
[424900829,1781257848000,-500.0,0.00016508,2]
[424900818,1781257848000,-525.0,0.00016309,2]
[424900819,1781257848000,-4923.09472156,0.000164,2]
[424900820,1781257848000,-350.0,0.00016407,2]
[424900813,1781257848000,-298.04,0.000162,2]
[424900823,1781257848000,-1000.0,0.00016438,2]
[424900824,1781257848000,-1000.0,0.00016438,2]
[424900825,1781257848000,-1000.0,0.00016438,2]
[424900828,1781257848000,-2005.94132076,0.00016508,2]
[424900827,1781257848000,-177.87,0.00016504,2]
[424900822,1781257848000,-450.58,0.00016438,2]
[424900812,1781257848000,-12622.82,0.000162,2]
[424900830,1781257848000,-319.7,0.00016597,2]
[424900821,1781257848000,-537.33,0.00016438,2]
[424900817,1781257848000,-167.0,0.0001629,2]
[424900799,1781257848000,-160.0,0.00016,8]
[424900811,1781257848000,-25534.51,0.000162,2]
[424900832,1781257848000,-1672.7364795,0.00016733,2]
[424900796,1781257848000,-1193.18,0.00015901,2]
[424900798,1781257848000,-1883.69222569,0.00016,2]
[424900805,1781257848000,-2000.0,0.00016075,2]
[424900797,1781257848000,-4102.58977509,0.00015988,2]
[424900803,1781257848000,-166.81,0.0001605,2]
[424900800,1781257848000,-159.0,0.00016,2]
[424900810,1781257848000,-350.0,0.00016187,2]
[424900801,1781257848000,-300.0,0.00016,2]
[424900804,1781257848000,-163.811212,0.0001606,2]
[424900806,1781257848000,-4923.09472156,0.000161,2]
[424900807,1781257848000,-8291.52,0.00016116,2]
[424900809,1781257848000,-1613.0535,0.00016185,2]
[424900808,1781257848000,-500.0,0.00016137,2]
[424900815,1781257848000,-1517.43147194,0.00016225,2]
[424900816,1781257848000,-694.0,0.0001629,2]
[424900802,1781257848000,-439.34945642,0.00016,2]
[424900833,1781257848000,-152.25,0.00016767,2]
[424900836,1781257848000,-289.64,0.00016956,2]
[424900841,1781257848000,-365.0,0.00017148,2]
[424900854,1781257848000,-1017.04,0.00017342,2]
[424900856,1781257848000,-5693.2,0.00017572,2]
[424900855,1781257848000,-46410.43024494,0.00017378,2]
[424900861,1781257848000,-1275.0,0.00017699,2]
[424900865,1781257848000,-500.0,0.00017904,7]
[424900858,1781257848000,-1358.0,0.00017699,2]
[424900862,1781257848000,-933.0,0.00017699,2]
[424900857,1781257848000,-19762.59,0.00017572,2]
[424900864,1781257848000,-1798.80895522,0.00017829,2]
[424900859,1781257848000,-3556.0,0.00017699,2]
[424900877,1781257848000,-500.0,0.00017904,7]
[424900866,1781257848000,-500.0,0.00017904,7]
[424900868,1781257848000,-500.0,0.00017904,7]
[424900867,1781257848000,-500.0,0.00017904,7]
[424900878,1781257848000,-500.0,0.00017904,7]
[424900869,1781257848000,-500.0,0.00017904,7]
[424900863,1781257848000,-6076.0,0.00017699,2]
[424900846,1781257848000,-249.0,0.00017148,2]
[424900860,1781257848000,-382.0,0.00017699,2]
[424900844,1781257848000,-304.0,0.00017148,2]
[424900851,1781257848000,-694.0,0.0001729,2]
[424900838,1781257848000,-175.0,0.00017148,2]
[424900835,1781257848000,-521.2,0.00016931,2]
[424900837,1781257848000,-169.08,0.0001707,2]
[424900831,1781257848000,-226.29,0.000167,2]
[424900839,1781257848000,-1641.0,0.00017148,2]
[424900840,1781257848000,-157.0,0.00017148,2]
[424900843,1781257848000,-181.0,0.00017148,2]
[424900834,1781257848000,-166.81,0.00016845,2]
[424900852,1781257848000,-167.0,0.0001729,2]
[424900853,1781257848000,-1650.0,0.00017301,2]
[424900850,1781257848000,-150.0,0.00017285,7]
[424900849,1781257848000,-1734.62772924,0.00017281,2]
[424900845,1781257848000,-2311.0,0.00017148,2]
[424900848,1781257848000,-500.0,0.0001727,2]
[424900847,1781257848000,-376.0,0.00017148,2]
[424900842,1781257848000,-251.0,0.00017148,2]
[424900939,1781257849000,-500.0,0.00017904,7]
[424900940,1781257849000,-500.0,0.00017904,7]
[424900934,1781257849000,-500.0,0.00017904,7]
[424900938,1781257849000,-500.0,0.00017904,7]
[424900933,1781257849000,-500.0,0.00017904,7]
[424900931,1781257849000,-500.0,0.00017904,7]
[424900929,1781257849000,-500.0,0.00017904,7]
[424900945,1781257849000,-500.0,0.00017904,7]
[424900935,1781257849000,-500.0,0.00017904,7]
[424900946,1781257849000,-500.0,0.00017904,7]
[424900942,1781257849000,-500.0,0.00017904,7]
[424900951,1781257849000,-500.0,0.00017904,7]
[424900948,1781257849000,-500.0,0.00017904,7]
[424900941,1781257849000,-500.0,0.00017904,7]
[424900949,1781257849000,-500.0,0.00017904,7]
[424900947,1781257849000,-500.0,0.00017904,7]
[424900944,1781257849000,-500.0,0.00017904,7]
[424900943,1781257849000,-500.0,0.00017904,7]
[424900952,1781257849000,-500.0,0.00017904,7]
[424900936,1781257849000,-500.0,0.00017904,7]
[424900950,1781257849000,-500.0,0.00017904,7]
[424900930,1781257849000,-500.0,0.00017904,7]
[424900909,1781257849000,-500.0,0.00017904,7]
[424900928,1781257849000,-500.0,0.00017904,7]
[424900911,1781257849000,-500.0,0.00017904,7]
[424900914,1781257849000,-500.0,0.00017904,7]
[424900910,1781257849000,-500.0,0.00017904,7]
[424900955,1781257849000,-500.0,0.00017904,7]
[424900912,1781257849000,-500.0,0.00017904,7]
[424900913,1781257849000,-500.0,0.00017904,7]
[424900916,1781257849000,-500.0,0.00017904,7]
[424900926,1781257849000,-500.0,0.00017904,7]
[424900915,1781257849000,-500.0,0.00017904,7]
[424900937,1781257849000,-500.0,0.00017904,7]
[424900919,1781257849000,-500.0,0.00017904,7]
[424900918,1781257849000,-500.0,0.00017904,7]
[424900925,1781257849000,-500.0,0.00017904,7]
[424900923,1781257849000,-500.0,0.00017904,7]
[424900922,1781257849000,-500.0,0.00017904,7]
[424900924,1781257849000,-500.0,0.00017904,7]
[424900920,1781257849000,-500.0,0.00017904,7]
[424900921,1781257849000,-500.0,0.00017904,7]
[424900927,1781257849000,-500.0,0.00017904,7]
[424900932,1781257849000,-500.0,0.00017904,7]
[424900917,1781257849000,-500.0,0.00017904,7]
[424900963,1781257849000,-500.0,0.00017904,7]
[424900991,1781257849000,-500.0,0.00017904,7]
[424900953,1781257849000,-500.0,0.00017904,7]
[424900985,1781257849000,-500.0,0.00017904,7]
[424900984,1781257849000,-500.0,0.00017904,7]
[424900986,1781257849000,-500.0,0.00017904,7]
[424900981,1781257849000,-500.0,0.00017904,7]
[424900983,1781257849000,-500.0,0.00017904,7]
[424900988,1781257849000,-171.25,0.00017904,7]
[424900987,1781257849000,-500.0,0.00017904,7]
[424900990,1781257849000,-500.0,0.00017904,7]
[424900989,1781257849000,-412.17,0.00017904,7]
[424900979,1781257849000,-500.0,0.00017904,7]
[424900994,1781257849000,-500.0,0.00017904,7]
[424900996,1781257849000,-500.0,0.00017904,7]
[424900995,1781257849000,-500.0,0.00017904,7]
[424900997,1781257849000,-500.0,0.00017904,7]
[424900998,1781257849000,-500.0,0.00017904,7]
[424901000,1781257849000,-500.0,0.00017904,7]
[424900999,1781257849000,-509.0,0.00017904,7]
[424901002,1781257849000,-500.0,0.00017904,7]
[424900954,1781257849000,-500.0,0.00017904,7]
[424901001,1781257849000,-526.94,0.00017904,7]
[424900993,1781257849000,-500.0,0.00017904,7]
[424900982,1781257849000,-500.0,0.00017904,7]
[424900992,1781257849000,-500.0,0.00017904,7]
[424900977,1781257849000,-500.0,0.00017904,7]
[424900957,1781257849000,-500.0,0.00017904,7]
[424900962,1781257849000,-500.0,0.00017904,7]
[424900980,1781257849000,-500.0,0.00017904,7]
[424900960,1781257849000,-500.0,0.00017904,7]
[424900958,1781257849000,-500.0,0.00017904,7]
[424900959,1781257849000,-500.0,0.00017904,7]
[424900956,1781257849000,-500.0,0.00017904,7]
[424900961,1781257849000,-500.0,0.00017904,7]
[424900965,1781257849000,-500.0,0.00017904,7]
[424900968,1781257849000,-500.0,0.00017904,7]
[424900964,1781257849000,-500.0,0.00017904,7]
[424900975,1781257849000,-500.0,0.00017904,7]
[424900974,1781257849000,-500.0,0.00017904,7]
[424900966,1781257849000,-500.0,0.00017904,7]
[424900969,1781257849000,-500.0,0.00017904,7]
[424900972,1781257849000,-500.0,0.00017904,7]
[424900970,1781257849000,-500.0,0.00017904,7]
[424900971,1781257849000,-500.0,0.00017904,7]
[424900973,1781257849000,-500.0,0.00017904,7]
[424900978,1781257849000,-500.0,0.00017904,7]
[424900967,1781257849000,-500.0,0.00017904,7]
[424900976,1781257849000,-500.0,0.00017904,7]
[424901040,1781257850000,-5247.19895365,0.00019,2]
[424901036,1781257850000,-9935.98567777,0.000189,2]
[424901041,1781257850000,-1190.93681599,0.00019,2]
[424901033,1781257850000,-505.0,0.00018827,2]
[424901032,1781257850000,-500.0,0.00018766,7]
[424901035,1781257850000,-500.0,0.0001887,2]
[424901026,1781257850000,-226.29,0.000185,2]
[424901039,1781257850000,-151.0,0.00018997,2]
[424901030,1781257850000,-500.0,0.00018766,7]
[424901034,1781257850000,-183.33333333,0.00018839,2]
[424901038,1781257850000,-1934.38338736,0.00018925,2]
[424901049,1781257850000,-181.0,0.00019148,2]
[424901042,1781257850000,-369633.75434075,0.00019,2]
[424901044,1781257850000,-9935.98567777,0.000191,2]
[424901046,1781257850000,-1641.0,0.00019148,2]
[424901045,1781257850000,-175.0,0.00019148,2]
[424901043,1781257850000,-3733.688826,0.00019,2]
[424901047,1781257850000,-365.0,0.00019148,2]
[424901048,1781257850000,-251.0,0.00019148,2]
[424901050,1781257850000,-304.0,0.00019148,2]
[424901051,1781257850000,-2311.0,0.00019148,2]
[424901031,1781257850000,-500.0,0.00018766,7]
[424901054,1781257850000,-379.27269436,0.00019178,2]
[424901037,1781257850000,-388.42728489,0.000189,2]
[424901029,1781257850000,-19762.59,0.0001872,2]
[424901003,1781257850000,-103191.67677667,0.00018,2]
[424901027,1781257850000,-9935.98567777,0.000185,2]
[424901056,1781257850000,-694.0,0.0001929,2]
[424901010,1781257850000,-164.80496035,0.00018148,2]
[424901006,1781257850000,-9935.98567777,0.00018,2]
[424901005,1781257850000,-350.0,0.00018,2]
[424901004,1781257850000,-413.81809794,0.00018,2]
[424901008,1781257850000,-175.0,0.00018148,2]
[424901009,1781257850000,-1641.0,0.00018148,2]
[424901007,1781257850000,-505.0,0.00018,2]
[424901014,1781257850000,-304.0,0.00018148,2]
[424901017,1781257850000,-376.0,0.00018148,2]
[424901015,1781257850000,-2311.0,0.00018148,2]
[424901019,1781257850000,-694.0,0.0001829,2]
[424901018,1781257850000,-9935.98567777,0.000182,2]
[424901013,1781257850000,-181.0,0.00018148,2]
[424901011,1781257850000,-365.0,0.00018148,2]
[424901016,1781257850000,-249.0,0.00018148,2]
[424901021,1781257850000,-240.542721,0.00018318,7]
[424901012,1781257850000,-251.0,0.00018148,2]
[424901020,1781257850000,-167.0,0.0001829,2]
[424901023,1781257850000,-1517.43147194,0.00018394,2]
[424901024,1781257850000,-9935.98567777,0.000184,2]
[424901022,1781257850000,-1865.36488656,0.00018377,2]
[424901025,1781257850000,-851.4,0.0001841,2]
[424901028,1781257850000,-9935.98567777,0.000187,2]
[424901052,1781257850000,-249.0,0.00019148,2]
[424901101,1781257850000,-151.0,0.00020021,2]
[424901058,1781257850000,-9935.98567777,0.000193,2]
[424901085,1781257850000,-1030.0,0.00020021,2]
[424901086,1781257850000,-1068.11,0.00020021,2]
[424901093,1781257850000,-151.0,0.00020021,2]
[424901087,1781257850000,-151.0,0.00020021,2]
[424901090,1781257850000,-151.0,0.00020021,2]
[424901088,1781257850000,-806.71495988,0.00020021,2]
[424901094,1781257850000,-9552.16786547,0.00020021,2]
[424901084,1781257850000,-215.15259985,0.00020021,2]
[424901092,1781257850000,-151.0,0.00020021,2]
[424901091,1781257850000,-174.61919141,0.00020021,2]
[424901089,1781257850000,-151.0,0.00020021,2]
[424901096,1781257850000,-151.0,0.00020021,2]
[424901095,1781257850000,-151.0,0.00020021,2]
[424901098,1781257850000,-152.0,0.00020021,2]
[424901099,1781257850000,-500.0,0.00020021,2]
[424901097,1781257850000,-500.0,0.00020021,2]
[424901103,1781257850000,-151.0,0.00020021,2]
[424901100,1781257850000,-2080.17592889,0.00020021,2]
[424901104,1781257850000,-500.0,0.00020021,2]
[424901102,1781257850000,-152.0,0.00020021,2]
[424901106,1781257850000,-4853.74383408,0.00020021,2]
[424901105,1781257850000,-151.0,0.00020021,2]
[424901055,1781257850000,-341.34542492,0.00019178,2]
[424901083,1781257850000,-2197.77,0.0002,2]
[424901081,1781257850000,-1201.0,0.0002,2]
[424901107,1781257850000,-500.0,0.00020021,2]
[424901080,1781257850000,-4478.505508,0.0002,2]
[424901082,1781257850000,-200.0,0.0002,10]
[424901057,1781257850000,-167.0,0.0001929,2]
[424901059,1781257850000,-500.0,0.00019311,2]
[424901061,1781257850000,-1962.0,0.00019452,2]
[424901060,1781257850000,-22422.43006691,0.00019339,7]
[424901062,1781257850000,-1568.0,0.00019452,2]
[424901053,1781257850000,-376.0,0.00019148,2]
[424901063,1781257850000,-2005.9555727,0.00019473,2]
[424901066,1781257850000,-505.0,0.00019653,3]
[424901067,1781257850000,-9935.98567777,0.000197,2]
[424901068,1781257850000,-398.861423,0.00019834,7]
[424901065,1781257850000,-9935.98567777,0.000195,2]
[424901071,1781257850000,-5293.50833969,0.0002,2]
[424901069,1781257850000,-500.0,0.00019862,7]
[424901070,1781257850000,-1237.51,0.00019968,2]
[424901072,1781257850000,-25993.9783865,0.0002,2]
[424901074,1781257850000,-3950.0,0.0002,2]
[424901073,1781257850000,-3994.06743211,0.0002,2]
[424901075,1781257850000,-26850.38661891,0.0002,2]
[424901078,1781257850000,-13130.21162899,0.0002,2]
[424901076,1781257850000,-52477.33148969,0.0002,2]
[424901079,1781257850000,-400.0,0.0002,2]
[424901064,1781257850000,-13548.723146,0.000195,2]
[424901077,1781257850000,-8000.0,0.0002,2]
[424901143,1781257851000,-500.0,0.00020021,2]
[424901140,1781257851000,-152.0,0.00020021,2]
[424901141,1781257851000,-151.0,0.00020021,2]
[424901134,1781257851000,-500.0,0.00020021,2]
[424901135,1781257851000,-152.0,0.00020021,2]
[424901138,1781257851000,-151.0,0.00020021,2]
[424901137,1781257851000,-151.0,0.00020021,2]
[424901136,1781257851000,-500.0,0.00020021,2]
[424901139,1781257851000,-500.0,0.00020021,2]
[424901142,1781257851000,-151.0,0.00020021,2]
[424901150,1781257851000,-151.0,0.00020021,2]
[424901145,1781257851000,-151.0,0.00020021,2]
[424901149,1781257851000,-151.0,0.00020021,2]
[424901146,1781257851000,-151.0,0.00020021,2]
[424901152,1781257851000,-151.0,0.00020021,2]
[424901148,1781257851000,-152.0,0.00020021,2]
[424901147,1781257851000,-500.0,0.00020021,2]
[424901154,1781257851000,-500.0,0.00020021,2]
[424901151,1781257851000,-500.0,0.00020021,2]
[424901153,1781257851000,-151.0,0.00020021,2]
[424901133,1781257851000,-151.0,0.00020021,2]
[424901144,1781257851000,-152.0,0.00020021,2]
[424901130,1781257851000,-152.0,0.00020021,2]
[424901122,1781257851000,-151.0,0.00020021,2]
[424901129,1781257851000,-500.0,0.00020021,2]
[424901156,1781257851000,-151.0,0.00020021,2]
[424901108,1781257851000,-152.0,0.00020021,2]
[424901112,1781257851000,-500.0,0.00020021,2]
[424901109,1781257851000,-500.0,0.00020021,2]
[424901111,1781257851000,-151.0,0.00020021,2]
[424901110,1781257851000,-151.0,0.00020021,2]
[424901114,1781257851000,-191.5882619,0.00020021,2]
[424901113,1781257851000,-500.0,0.00020021,2]
[424901118,1781257851000,-151.0,0.00020021,2]
[424901116,1781257851000,-500.0,0.00020021,2]
[424901132,1781257851000,-151.0,0.00020021,2]
[424901115,1781257851000,-152.0,0.00020021,2]
[424901119,1781257851000,-500.0,0.00020021,2]
[424901121,1781257851000,-152.0,0.00020021,2]
[424901120,1781257851000,-500.0,0.00020021,2]
[424901123,1781257851000,-500.0,0.00020021,2]
[424901124,1781257851000,-151.0,0.00020021,2]
[424901126,1781257851000,-151.0,0.00020021,2]
[424901127,1781257851000,-500.0,0.00020021,2]
[424901125,1781257851000,-500.0,0.00020021,2]
[424901128,1781257851000,-151.0,0.00020021,2]
[424901131,1781257851000,-500.0,0.00020021,2]
[424901117,1781257851000,-152.0,0.00020021,2]
[424901158,1781257851000,-151.0,0.00020021,2]
[424901169,1781257851000,-393.851405,0.00020136,2]
[424901155,1781257851000,-151.0,0.00020021,2]
[424901186,1781257851000,-500.0,0.0002037,2]
[424901195,1781257851000,-1517.43147194,0.00020562,2]
[424901189,1781257851000,-151.0,0.00020406,2]
[424901187,1781257851000,-851.4,0.00020381,2]
[424901193,1781257851000,-151.0,0.00020516,2]
[424901188,1781257851000,-1700.0,0.000204,10]
[424901194,1781257851000,-21896.56,0.00020548,2]
[424901192,1781257851000,-505.0,0.0002048,4]
[424901191,1781257851000,-4102.58977509,0.00020462,2]
[424901190,1781257851000,-151.0,0.00020461,2]
[424901182,1781257851000,-694.0,0.0002029,2]
[424901159,1781257851000,-151.0,0.00020021,2]
[424901203,1781257851000,-150.0,0.0002058,2]
[424901198,1781257851000,-9905.59807649,0.00020569,2]
[424901202,1781257851000,-151.0,0.00020571,2]
[424901200,1781257851000,-2157.14243826,0.00020569,2]
[424901205,1781257851000,-150.0,0.0002058,2]
[424901204,1781257851000,-150.0,0.0002058,2]
[424901199,1781257851000,-151.0,0.00020569,2]
[424901201,1781257851000,-296.554145,0.00020569,2]
[424901207,1781257851000,-439.34945642,0.000206,2]
[424901206,1781257851000,-151.62842258,0.0002058,2]
[424901196,1781257851000,-215.15259985,0.00020569,2]
[424901181,1781257851000,-151.0,0.00020241,2]
[424901197,1781257851000,-181.08010149,0.00020569,2]
[424901180,1781257851000,-5461.91755987,0.00020186,2]
[424901184,1781257851000,-151.0,0.00020296,2]
[424901157,1781257851000,-151.0,0.00020021,2]
[424901162,1781257851000,-5033.33235594,0.00020076,2]
[424901164,1781257851000,-226.29,0.000201,2]
[424901163,1781257851000,-150.0,0.00020084,2]
[424901160,1781257851000,-209.40437684,0.00020021,2]
[424901166,1781257851000,-151.0,0.00020131,2]
[424901167,1781257851000,-5219.56565311,0.00020131,2]
[424901170,1781257851000,-175.0,0.00020148,2]
[424901171,1781257851000,-1641.0,0.00020148,2]
[424901165,1781257851000,-300.0,0.000201,10]
[424901161,1781257851000,-151.0,0.00020076,2]
[424901173,1781257851000,-251.0,0.00020148,2]
[424901168,1781257851000,-1962.0,0.00020136,2]
[424901172,1781257851000,-365.0,0.00020148,2]
[424901175,1781257851000,-304.0,0.00020148,2]
[424901178,1781257851000,-376.0,0.00020148,2]
[424901185,1781257851000,-151.0,0.00020351,2]
[424901176,1781257851000,-2311.0,0.00020148,2]
[424901177,1781257851000,-249.0,0.00020148,2]
[424901179,1781257851000,-151.0,0.00020186,2]
[424901174,1781257851000,-181.0,0.00020148,2]
[424901183,1781257851000,-167.0,0.0002029,2]
[424901245,1781257852000,-184.0,0.0002129,2]
[424901242,1781257852000,-1921.35,0.00021273,2]
[424901241,1781257852000,-924.64983228,0.00021228,2]
[424901239,1781257852000,-173.05798356,0.000212,2]
[424901235,1781257852000,-181.0,0.00021148,2]
[424901238,1781257852000,-249.0,0.00021148,2]
[424901236,1781257852000,-304.0,0.00021148,2]
[424901232,1781257852000,-1641.0,0.00021148,2]
[424901243,1781257852000,-594.27,0.00021273,2]
[424901240,1781257852000,-152.25,0.00021205,2]
[424901244,1781257852000,-700.0,0.0002129,2]
[424901237,1781257852000,-2311.0,0.00021148,2]
[424901248,1781257852000,-554123.4751699,0.00021458,2]
[424901247,1781257852000,-173.05798356,0.000214,2]
[424901250,1781257852000,-58536.32397015,0.000215,2]
[424901249,1781257852000,-198276.3134776,0.00021461,2]
[424901252,1781257852000,-215.15259985,0.00021665,2]
[424901251,1781257852000,-342.635826,0.00021665,7]
[424901253,1781257852000,-181.02548926,0.00021665,2]
[424901254,1781257852000,-8439.74839119,0.00021665,2]
[424901258,1781257852000,-5000.0,0.00021918,2]
[424901256,1781257852000,-2197.77,0.00021683,2]
[424901255,1781257852000,-2319.72410669,0.00021665,2]
[424901246,1781257852000,-505.0,0.00021307,5]
[424901229,1781257852000,-152.79184237,0.00021117,2]
[424901280,1781257852000,-2318.0,0.00022148,2]
[424901233,1781257852000,-365.0,0.00021148,2]
[424901257,1781257852000,-573.27,0.00021885,2]
[424901209,1781257852000,-3556.0,0.00020699,2]
[424901208,1781257852000,-1358.0,0.00020699,2]
[424901210,1781257852000,-382.0,0.00020699,2]
[424901211,1781257852000,-1275.0,0.00020699,2]